[Event "World Junior U20 Girls 2018"]
[Site "Gebze"]
[Date "2018.09.13"]
[Round "9"]
[White "Chitlange Sakshi"]
[Black "Tsolakidou, Stavroula"]
[Result "0-1"]
[ECO "A63"]
[WhiteElo "2279"]
[BlackElo "2393"]
[Annotator "NA"]
[PlyCount "120"]
[EventDate "2018.09.05"]
[EventType "swiss"]
[EventCountry "TUR"]
[SourceTitle "playchess.com"]
[Source "ChessBase"]
[SourceQuality "1"]
[TimeControl "40/5400+30:1800+30"]

1. d4 {[%emt 0:00:30]} Nf6 {[%emt 0:00:30]} 2. c4 {[%emt 0:00:00]} e6 {[%emt 0:00:30]} 3. Nf3 {[%emt 0:00:00]} c5 {[%emt 0:00:00]} 4. d5 {[%emt 0:00:30]} d6 {[%emt 0:00:00]} 5. Nc3 {[%emt 0:00:30]} exd5 {[%emt 0:00:30]} 6. cxd5 {[%emt 0:00:00]} g6 {[%emt 0:00:00]} 7. g3 {[%emt 0:00:00]} Bg7 {[%emt 0:00:00]} 8. Bg2 {[%emt 0:00:00]} O-O {[%emt 0:00:30]} 9. O-O {[%emt 0:00:00]} a6 {[%emt 0:00:30]} 10. a4 {[%emt 0:00:00]} Nbd7 {[%emt 0:00:30]} 11. Bf4 {[%emt 0:02:00]} Qe7 {[%emt 0:00:30]} 12. h3 {[%emt 0:04:30]} Re8 {[%emt 0:08:30]} 13. Re1 {[%emt 0:05:30] A63: Benoni (mit 7.g3)} h6 {[%emt 0:06:30]} (13... Nh5 14. Bg5 Qf8 15. e4 h6 16. Bd2 Rb8 17. a5 Nhf6 18. Qc2 b5 19. axb6 Nxb6 {0-1 (49) Kurnosov,I (2660)-Kokarev,D (2604) Vladivostok 2012}) 14. e4 {[%emt 0:15:30]} Nh5 {[%emt 0:12:30]} 15. Be3 {[%emt 0:02:30]} Rb8 {[%emt 0:05:30]} 16. Qc1 $146 {[%emt 0:17:30]} ({Vorgänger:} 16. Bf1 Ne5 17. Nxe5 Qxe5 18. f4 Qe7 19. g4 {1-0 (60) Kiss,A (2360)-Bach,E Wuerzburg 1989}) 16... Qf8 {[%emt 0:10:30]} 17. Bd2 {[%emt 0:07:30]} c4 {[%emt 0:08:30]} 18. Bf1 {[%emt 0:10:30]} Nc5 {[%emt 0:04:30]} 19. Bxc4 {[%emt 0:02:30]} Bxh3 {[%emt 0:04:30]} 20. b4 {[%emt 0:09:30]} Nd7 {[%emt 0:04:30]} 21. Ra2 {[%emt 0:03:01]} Rbc8 {[%emt 0:03:30]} 22. Be2 {[%emt 0:04:11]} Bxc3 {[%emt 0:12:01]} 23. Bxc3 {[%emt 0:00:30]} Rxe4 {[%emt 0:00:04]} 24. Rc2 {[%emt 0:04:08]} Bg4 {[%emt 0:03:24]} 25. Kg2 {[%emt 0:05:13]} Rce8 {[%emt 0:03:00]} 26. Nd4 {[%emt 0:02:20]} Bxe2 {[%emt 0:06:02]} 27. Rcxe2 {[%emt 0:00:01]} Rxe2 {[%emt 0:00:34]} 28. Rxe2 {[%emt 0:00:00]} Kh7 {[%emt 0:00:34]} 29. Bd2 {[%emt 0:01:14]} Rxe2 {[%emt 0:01:11]} 30. Nxe2 {[%emt 0:00:30]} Qe7 {[%emt 0:00:12]} 31. Nc3 {[%emt 0:00:27]} Nb6 {[%emt 0:01:53]} 32. Bxh6 {[%emt 0:02:07]} Nxd5 {[%emt 0:00:12]} 33. Bg5 {[%emt 0:01:39]} Qe6 {[%emt 0:00:39]} 34. Nxd5 {[%emt 0:01:34]} Qxd5+ {[%emt 0:00:30]} 35. Kg1 {[%emt 0:00:00]} Qf5 {[%emt 0:01:58]} 36. Be3 {[%emt 0:00:19]} Qf3 {[%emt 0:00:50]} 37. Bd4 {[%emt 0:01:15]} Nxg3 {[%emt 0:00:26]} 38. fxg3 {[%emt 0:00:58]} Qxg3+ {[%emt 0:00:30]} 39. Kf1 {[%emt 0:00:32]} Qd3+ {[%emt 0:00:04]} 40. Kg2 {[%emt 0:00:30]} Qxd4 {[%emt 0:00:00]} 41. Qc7 {[%emt 0:01:01]} Qd5+ {[%emt 0:00:56]} 42. Kg3 {[%emt 0:00:30]} Kg7 {[%emt 0:00:00]} 43. b5 {[%emt 0:00:30]} axb5 {[%emt 0:01:00]} 44. axb5 {[%emt 0:00:30]} Qxb5 {[%emt 0:00:30]} 45. Qxd6 {[%emt 0:00:00]} Qg5+ {[%emt 0:00:30]} 46. Kh3 {[%emt 0:00:00]} b5 {[%emt 0:00:00]} 47. Qd4+ {[%emt 0:01:30]} Qf6 {[%emt 0:00:00]} 48. Qb4 {[%emt 0:00:30]} Qe6+ {[%emt 0:00:30]} 49. Kg3 {[%emt 0:00:30]} Qc4 {[%emt 0:00:30]} 50. Qb2+ {[%emt 0:00:30]} Kg8 {[%emt 0:00:30]} 51. Qe5 {[%emt 0:01:30]} b4 {[%emt 0:00:00]} 52. Kf2 {[%emt 0:02:30]} Qc3 {[%emt 0:00:00]} 53. Qe8+ {[%emt 0:01:30]} Kg7 {[%emt 0:00:30]} 54. Qa4 {[%emt 0:01:30]} b3 {[%emt 0:00:30]} 55. Qa3 {[%emt 0:00:00]} Qc2+ {[%emt 0:00:30]} 56. Kg3 {[%emt 0:00:00]} b2 {[%emt 0:00:30]} 57. Qa5 {[%emt 0:00:30]} Qd3+ {[%emt 0:00:30]} 58. Kg2 {[%emt 0:01:30]} Qe2+ {[%emt 0:00:30]} 59. Kg3 {[%emt 0:00:30]} b1=Q {[%emt 0:01:30]} 60. Qc3+ {[%emt 0:00:30]} Kh7 {[%emt 0:00:00]} 0-1

[Event "World Junior U20 Girls 2018"]
[Site "Gebze"]
[Date "2018.09.13"]
[Round "9"]
[White "Sliwicka, Alicja"]
[Black "Beydullayeva, Govhar"]
[Result "1/2-1/2"]
[ECO "B53"]
[WhiteElo "2272"]
[BlackElo "2202"]
[Annotator "ChessBase"]
[PlyCount "92"]
[EventDate "2018.09.05"]
[EventType "swiss"]
[EventCountry "TUR"]
[SourceTitle "playchess.com"]
[Source "ChessBase"]
[SourceQuality "1"]
[TimeControl "40/5400+30:1800+30"]

1. e4 {[%emt 0:00:30]} c5 {[%emt 0:00:30]} 2. Nf3 {[%emt 0:00:30]} d6 {[%emt 0:00:30]} 3. d4 {[%emt 0:00:00]} Nf6 {[%emt 0:00:00]} 4. dxc5 {[%emt 0:00:00]} Nxe4 {[%emt 0:00:00]} 5. cxd6 {[%emt 0:00:00]} Nc6 {[%emt 0:00:30]} 6. Nbd2 {[%emt 0:00:00]} Nxd6 {[%emt 0:00:00]} 7. Nc4 {[%emt 0:00:00]} e5 {[%emt 0:01:00]} 8. c3 {[%emt 0:00:00]} f6 {[%emt 0:01:30]} 9. Qb3 {[%emt 0:00:30]} Qc7 {[%emt 0:00:30]} 10. Nxd6+ {[%emt 0:00:30]} Bxd6 {[%emt 0:00:30]} 11. Be3 {[%emt 0:00:30]} Bg4 {[%emt 0:07:30]} 12. Be2 {[%emt 0:08:30]} Qe7 {[%emt 0:10:30]} 13. h3 {[%emt 0:09:30]} Be6 {[%emt 0:01:30]} 14. Bc4 {[%emt 0:05:30]} Bxc4 {[%emt 0:01:30]} 15. Qxc4 {[%emt 0:00:00]} Qf7 {[%emt 0:01:30]} 16. Nd2 {[%emt 0:04:00]} f5 {[%emt 0:05:30]} 17. f3 {[%emt 0:08:30]} O-O {[%emt 0:03:30]} 18. Ke2 {[%emt 0:06:30]} Rac8 {[%emt 0:03:30]} 19. Qxf7+ {[%emt 0:01:30]} Kxf7 {[%emt 0:01:30]} 20. Rhc1 {[%emt 0:08:30]} Rfe8 {[%emt 0:03:30]} 21. b4 {[%emt 0:01:30]} Ne7 {[%emt 0:13:30]} 22. a3 {[%emt 0:09:30]} Nd5 {[%emt 0:01:30]} 23. c4 {[%emt 0:00:30]} Nxe3 {[%emt 0:00:30]} 24. Kxe3 {[%emt 0:00:00]} b6 {[%emt 0:06:30]} 25. Rc2 {[%emt 0:06:00]} Be7 {[%emt 0:04:30]} 26. Rd1 {[%emt 0:05:30]} Red8 {[%emt 0:01:30]} 27. Ke2 {[%emt 0:03:30]} Rd4 {[%emt 0:05:30]} 28. Nf1 {[%emt 0:00:30]} Rdxc4 {[%emt 0:04:30]} 29. Rxc4 {[%emt 0:00:30]} Rxc4 {[%emt 0:00:30]} 30. Ne3 {[%emt 0:00:30]} Rc7 {[%emt 0:02:36]} 31. Nxf5 {[%emt 0:00:00]} g6 {[%emt 0:03:40]} 32. Ne3 {[%emt 0:02:00]} Ke6 {[%emt 0:02:19]} 33. Rd3 {[%emt 0:01:58]} Rc1 {[%emt 0:02:52]} 34. Kf2 {[%emt 0:05:41]} Bg5 {[%emt 0:02:46]} 35. g3 {[%emt 0:00:48]} b5 {[%emt 0:05:32]} 36. h4 {[%emt 0:02:04]} Bxe3+ {[%emt 0:01:27]} 37. Kxe3 {[%emt 0:00:06]} h5 {[%emt 0:01:17]} 38. f4 {[%emt 0:06:42]} Rc4 {[%emt 0:00:27]} 39. fxe5 {[%emt 0:02:10]} Kxe5 {[%emt 0:00:03]} 40. Kf3 {[%emt 0:00:00]} Rc1 {[%emt 0:00:00]} 41. Re3+ {[%emt 0:03:01]} Kf5 {[%emt 0:14:18]} 42. Rd3 {[%emt 0:00:30]} a6 {[%emt 0:00:56]} 43. Rd5+ {[%emt 0:03:30]} Ke6 {[%emt 0:00:18]} 44. Rd3 {[%emt 0:00:30]} Kf5 {[%emt 0:02:32]} 45. Rd5+ {[%emt 0:01:30]} Ke6 {[%emt 0:00:30]} 46. Rd3 {[%emt 0:00:00]} Kf5 {[%emt 0:00:36]} 1/2-1/2

[Event "World Junior U20 Girls 2018"]
[Site "Gebze"]
[Date "2018.09.13"]
[Round "9"]
[White "Alinasab, Mobina"]
[Black "Lingur, Zalina"]
[Result "0-1"]
[ECO "C06"]
[WhiteElo "2261"]
[BlackElo "2061"]
[Annotator "NA"]
[PlyCount "76"]
[EventDate "2018.09.05"]
[EventType "swiss"]
[EventCountry "TUR"]
[SourceTitle "playchess.com"]
[Source "ChessBase"]
[SourceQuality "1"]
[TimeControl "40/5400+30:1800+30"]

1. e4 {[%emt 0:00:30]} e6 {[%emt 0:00:30]} 2. d4 {[%emt 0:00:30]} d5 {[%emt 0:00:30]} 3. Nd2 {[%emt 0:00:30]} Be7 {[%emt 0:00:00]} 4. Ngf3 {[%emt 0:00:30]} Nf6 {[%emt 0:00:00]} 5. e5 {[%emt 0:00:00]} Nfd7 {[%emt 0:00:30]} 6. Bd3 {[%emt 0:00:00]} c5 {[%emt 0:00:30]} 7. c3 {[%emt 0:00:00]} Nc6 {[%emt 0:00:00]} 8. O-O {[%emt 0:00:00]} a5 {[%emt 0:00:00]} 9. Re1 {[%emt 0:00:30]} cxd4 {[%emt 0:01:30]} 10. cxd4 {[%emt 0:00:30]} Qb6 {[%emt 0:00:00]} 11. Nb1 {[%emt 0:01:30] C06: French Tarrasch: 3...Nf6 4 e5 Nfd7 5 Bd3 main lines} (11. a4 Nxd4 12. Nxd4 Qxd4 13. Nf3 Qb6 14. Be3 Nc5 15. Bb5+ Bd7 16. Nd4 Bxb5 17. Nxb5 O-O 18. Qg4 Rfc8 {0-1 (33) Naroditsky,D (2631)-So,W (2779) ICC INT 2015}) 11... Nxd4 {[%emt 0:00:00]} 12. Nxd4 {[%emt 0:00:30]} Qxd4 {[%emt 0:00:30]} 13. Nc3 {[%emt 0:00:00]} Bc5 {[%emt 0:02:30]} 14. Be3 {[%emt 0:03:00]} Qh4 {[%emt 0:00:30]} 15. Nb5 {[%emt 0:44:30]} O-O {[%emt 0:04:30]} 16. Rc1 $146 {[%emt 0:01:30]} ({Predecessor:} 16. g3 Qe7 17. Rc1 b6 18. Bf4 f6 19. exf6 Nxf6 {0-1 (48) Nigmatov,O (2331)-Kotsur,P (2552) Tashkent 2017}) 16... b6 {[%emt 0:02:30]} 17. Bb1 {[%emt 0:01:30]} Bb7 {[%emt 0:17:30]} 18. Bxc5 {[%emt 0:06:30]} bxc5 {[%emt 0:09:30]} 19. Rc3 {[%emt 0:00:30]} g6 {[%emt 0:08:30]} 20. Qc1 {[%emt 0:05:30]} Rab8 {[%emt 0:14:30]} 21. Rh3 {[%emt 0:06:30] [#]} Qe7 $1 {[%emt 0:00:00]} 22. Qh6 {[%emt 0:11:29]} f5 {[%emt 0:00:00]} 23. exf6 {[%emt 0:00:04]} Rxf6 {[%emt 0:06:30]} 24. Rg3 {[%emt 0:01:07]} Qg7 {[%emt 0:09:30]} 25. Qd2 {[%emt 0:00:13]} Rbf8 {[%emt 0:02:39]} 26. f3 {[%emt 0:00:47]} Bc6 {[%emt 0:08:35]} 27. Nc3 {[%emt 0:02:09]} Qf7 {[%emt 0:01:40]} 28. h4 $17 {[%emt 0:00:50]} (28. Nd1 $142) 28... Kh8 {[%emt 0:07:32]} 29. Nd1 {[%emt 0:03:36]} Rf4 {[%emt 0:01:58]} 30. Nf2 {[%emt 0:05:34]} e5 {[%emt 0:01:58]} 31. Ng4 {[%emt 0:03:05]} e4 {[%emt 0:00:28]} 32. fxe4 {[%emt 0:00:34]} d4 {[%emt 0:00:25]} 33. Bd3 {[%emt 0:00:53]} Qe6 {[%emt 0:00:35]} 34. Nh2 {[%emt 0:00:36]} Ne5 {[%emt 0:00:20]} 35. Bb1 {[%emt 0:01:16]} Qf6 {[%emt 0:00:40]} 36. Qxa5 {[%emt 0:00:41]} Qxh4 {[%emt 0:00:29]} 37. Rh3 {[%emt 0:00:52]} Qf2+ {[%emt 0:00:30]} 38. Kh1 Nc4 {[%emt 0:00:30]} 0-1

[Event "World Junior U20 Girls 2018"]
[Site "Gebze"]
[Date "2018.09.13"]
[Round "9"]
[White "Haussernot, Cecile"]
[Black "Cramling Bellon, Anna"]
[Result "1-0"]
[ECO "B40"]
[WhiteElo "2237"]
[BlackElo "2009"]
[Annotator "NA"]
[PlyCount "67"]
[EventDate "2018.09.05"]
[EventType "swiss"]
[EventCountry "TUR"]
[SourceTitle "playchess.com"]
[Source "ChessBase"]
[SourceQuality "1"]
[TimeControl "40/5400+30:1800+30"]

1. e4 {[%emt 0:01:30]} c5 {[%emt 0:00:30]} 2. Nf3 {[%emt 0:00:30]} e6 {[%emt 0:00:00]} 3. d4 {[%emt 0:00:30]} cxd4 {[%emt 0:00:00]} 4. Nxd4 {[%emt 0:00:30]} Nf6 {[%emt 0:00:00]} 5. Nd2 {[%emt 0:07:30]} Nc6 {[%emt 0:16:00] B40: Sicilian: 2...e6, Unusual lines} (5... d6 6. Bb5+ Nbd7 7. O-O Be7 8. Re1 O-O 9. b3 Qc7 10. Bb2 Nc5 11. Bf1 Rd8 12. c4 a6 13. b4 {0-1 (42) Munoz Pantoja,M (2471)-Lopez Martinez,J (2547) Barcelona 2016}) 6. Nxc6 {[%emt 0:03:30]} bxc6 {[%emt 0:00:30]} 7. e5 {[%emt 0:00:30]} Nd5 {[%emt 0:00:30]} 8. c4 {[%emt 0:05:30]} Nf4 $146 {[%emt 0:02:30]} ({Predecessor:} 8... Nb4 9. Nf3 c5 10. a3 Nc6 11. Bd3 Qc7 12. O-O Bb7 13. Re1 {1-0 (33) Spielmann,R-Reti,R Karlsbad 1923}) 9. Nf3 {[%emt 0:19:30]} Ng6 {[%emt 0:11:30]} 10. Bd2 {[%emt 0:07:30]} Rb8 {[%emt 0:06:30]} 11. Bc3 {[%emt 0:01:30]} c5 {[%emt 0:10:30]} 12. h4 {[%emt 0:00:30]} Bb7 {[%emt 0:16:30]} 13. h5 {[%emt 0:01:30]} Ne7 {[%emt 0:02:30]} 14. Be2 {[%emt 0:01:30]} Nc6 {[%emt 0:02:30]} 15. Qd2 {[%emt 0:00:30]} Be7 {[%emt 0:00:30]} 16. O-O-O {[%emt 0:00:30]} Nb4 {[%emt 0:06:30]} 17. Bxb4 {[%emt 0:01:30]} cxb4 {[%emt 0:03:28]} 18. Nd4 {[%emt 0:02:30]} a6 {[%emt 0:02:32]} 19. f4 {[%emt 0:00:30]} Qa5 {[%emt 0:04:35]} 20. Kb1 {[%emt 0:05:30]} Be4+ {[%emt 0:02:55]} 21. Bd3 {[%emt 0:03:30]} Bxd3+ {[%emt 0:00:30]} 22. Qxd3 {[%emt 0:00:00]} O-O {[%emt 0:01:36]} 23. Nb3 {[%emt 0:00:00]} Qb6 {[%emt 0:01:30]} 24. Qxd7 {[%emt 0:00:30]} Rb7 {[%emt 0:00:12]} ({Black should play} 24... Rfe8 $1 $14) 25. Qd3 {[%emt 0:00:30]} a5 {[%emt 0:02:53]} 26. Qe4 {[%emt 0:01:30]} a4 {[%emt 0:00:36]} 27. Nd4 {[%emt 0:01:30]} Rc7 {[%emt 0:03:45]} 28. Nb5 {[%emt 0:00:30]} Rc5 {[%emt 0:00:20]} 29. Rd7 {[%emt 0:00:30]} Re8 {[%emt 0:01:44] [#]} 30. Rxe7 $18 {[%emt 0:00:30]} Rd8 {[%emt 0:00:49]} 31. Nd6 {[%emt 0:00:30]} b3 {[%emt 0:00:31]} 32. a3 {[%emt 0:00:30]} Rf8 {[%emt 0:00:31]} 33. Nxf7 {[%emt 0:01:30]} Rc7 {[%emt 0:00:32]} 34. Ng5 {[%emt 0:00:30]} 1-0

[Event "World Junior U20 Girls 2018"]
[Site "Gebze"]
[Date "2018.09.13"]
[Round "9"]
[White "Maltsevskaya, Aleksandra"]
[Black "Dordzhieva, Dinara"]
[Result "1/2-1/2"]
[ECO "B13"]
[WhiteElo "2234"]
[BlackElo "2318"]
[Annotator "NA"]
[PlyCount "84"]
[EventDate "2018.09.05"]
[EventType "swiss"]
[EventCountry "TUR"]
[SourceTitle "playchess.com"]
[Source "ChessBase"]
[SourceQuality "1"]
[TimeControl "40/5400+30:1800+30"]

1. e4 {[%emt 0:00:30]} c6 {[%emt 0:00:30]} 2. d4 {[%emt 0:04:30]} d5 {[%emt 0:00:00]} 3. exd5 {[%emt 0:00:30]} cxd5 {[%emt 0:00:00]} 4. Bd3 {[%emt 0:00:30]} Nc6 {[%emt 0:00:30]} 5. c3 {[%emt 0:00:30]} Qc7 {[%emt 0:00:00]} 6. Qb3 {[%emt 0:00:30]} Nxd4 $1 {[%emt 0:09:00] LiveBook: 3 Partien B13: Caro-Kann: Exchange Variation and Panov-Botvinnik Attack} 7. Qxd5 {[%emt 0:03:30]} e5 {[%emt 0:06:30]} 8. Na3 $146 {[%emt 0:14:30]} ({Predecessor:} 8. Nf3 Ne7 9. Bb5+ Nxb5 10. Qxb5+ Nc6 11. O-O Bd6 12. Nbd2 O-O 13. Nc4 a6 {½-½ (39) Leite,C (2165)-Fernando,D (2467) Torres Vedras 2011}) 8... Be6 {[%emt 0:10:30]} 9. Nb5 {[%emt 0:02:30]} Qb8 {[%emt 0:00:30]} 10. Qe4 {[%emt 0:00:30]} Nf6 {[%emt 0:03:30]} 11. Qh4 {[%emt 0:02:30]} Nc6 {[%emt 0:00:00]} 12. Nf3 {[%emt 0:05:30]} Be7 {[%emt 0:04:00]} 13. O-O {[%emt 0:01:30]} Ng4 {[%emt 0:12:30]} 14. Bg5 {[%emt 0:04:30]} f6 {[%emt 0:10:30]} 15. h3 {[%emt 0:17:30]} fxg5 {[%emt 0:07:30]} 16. Qh5+ {[%emt 0:01:30]} Kf8 {[%emt 0:02:30]} 17. hxg4 {[%emt 0:00:00]} a6 {[%emt 0:10:30]} 18. Na3 {[%emt 0:03:00]} e4 {[%emt 0:00:30]} 19. Bxe4 {[%emt 0:04:30]} Qf4 {[%emt 0:00:00]} 20. Bf5 {[%emt 0:10:30]} Bf7 {[%emt 0:01:00]} 21. Qh2 {[%emt 0:00:30]} g6 {[%emt 0:00:30]} 22. Qxf4 {[%emt 0:02:46]} gxf4 $16 {[%emt 0:00:30]} 23. Be4 {[%emt 0:00:00]} Kg7 {[%emt 0:04:28]} 24. Nc2 {[%emt 0:00:49]} Rad8 {[%emt 0:01:18]} 25. Rfe1 {[%emt 0:02:23]} Rhe8 {[%emt 0:01:45]} 26. Bxc6 {[%emt 0:04:17]} bxc6 {[%emt 0:00:05]} 27. Ncd4 {[%emt 0:00:00]} Rd6 {[%emt 0:03:32]} 28. b4 {[%emt 0:05:58]} Bf6 {[%emt 0:03:41]} 29. Rxe8 {[%emt 0:04:00]} Bxe8 {[%emt 0:00:30]} 30. Re1 {[%emt 0:00:00]} Bf7 {[%emt 0:00:38]} 31. g5 {[%emt 0:00:21]} Bxd4 {[%emt 0:05:03]} 32. Nxd4 {[%emt 0:01:02]} Bxa2 {[%emt 0:00:02]} 33. Re7+ {[%emt 0:02:18]} Kg8 {[%emt 0:00:02]} 34. Kh2 {[%emt 0:02:55]} Rd5 {[%emt 0:02:16]} 35. Re4 {[%emt 0:00:30]} Rxg5 {[%emt 0:00:40]} 36. Nxc6 {[%emt 0:00:30]} Kg7 {[%emt 0:01:07]} 37. Nd4 {[%emt 0:00:09]} Bd5 {[%emt 0:01:00]} 38. Ne6+ {[%emt 0:00:30]} Bxe6 {[%emt 0:00:30]} 39. Rxe6 {[%emt 0:00:30]} a5 {[%emt 0:00:00]} 40. Re4 {[%emt 0:00:00]} axb4 {[%emt 0:00:00]} 41. cxb4 {[%emt 0:02:02]} Rf5 {[%emt 0:03:53]} 42. Rc4 {[%emt 0:00:30]} g5 {[%emt 0:07:30]} 1/2-1/2

[Event "World Junior U20 Girls 2018"]
[Site "Gebze"]
[Date "2018.09.13"]
[Round "9"]
[White "Paramzina, Anastasya"]
[Black "Tokhirjonova, Gulrukhbegim"]
[Result "0-1"]
[ECO "C55"]
[WhiteElo "2222"]
[BlackElo "2369"]
[Annotator "NA"]
[PlyCount "74"]
[EventDate "2018.09.05"]
[EventType "swiss"]
[EventCountry "TUR"]
[SourceTitle "playchess.com"]
[Source "ChessBase"]
[SourceQuality "1"]
[TimeControl "40/5400+30:1800+30"]

1. e4 {[%emt 0:03:30]} e5 {[%emt 0:01:30]} 2. Nf3 {[%emt 0:00:30]} Nc6 {[%emt 0:00:00]} 3. Bc4 {[%emt 0:00:30]} Nf6 {[%emt 0:00:00]} 4. d3 {[%emt 0:00:00]} h6 {[%emt 0:01:30]} 5. O-O {[%emt 0:00:00]} d6 {[%emt 0:00:30]} 6. c3 {[%emt 0:00:30]} g5 {[%emt 0:00:30] C55: Two Knights: 4 d3, 4 d4 exd4 5 e5 and Max Lange Attack} 7. Be3 {[%emt 0:11:30]} (7. a4 Bg7 8. Re1 O-O 9. h3 d5 10. exd5 Nxd5 11. Nbd2 a6 12. Ne4 Nf4 13. a5 b5 14. axb6 cxb6 {1-0 (43) Karjakin,S (2782)-Mamedyarov,S (2808) Paris 2018}) 7... Bg7 {[%emt 0:00:30] LiveBook: 3 Games} 8. Nbd2 {[%emt 0:02:30]} Ne7 $146 {[%emt 0:05:30]} ({Predecessor:} 8... O-O 9. d4 exd4 10. Nxd4 Ne5 11. Be2 Neg4 12. Bxg4 Bxg4 13. Qc2 Re8 14. c4 {0-1 (48) Fossan,E (2342)-Hammer,J (2621) Norway 2018}) 9. d4 {[%emt 0:03:30]} Ng6 {[%emt 0:00:30]} 10. dxe5 {[%emt 0:01:30]} dxe5 {[%emt 0:00:30] [#]} 11. Qb3 $1 {[%emt 0:09:30]} O-O {[%emt 0:14:30]} 12. Bc5 {[%emt 0:03:30]} g4 {[%emt 0:08:30]} 13. Bxf8 {[%emt 0:00:30]} Qxf8 {[%emt 0:00:30]} 14. Ne1 {[%emt 0:00:30]} c6 {[%emt 0:00:30]} 15. a4 {[%emt 0:01:30]} h5 {[%emt 0:00:30]} 16. Nd3 {[%emt 0:02:30]} Bh6 {[%emt 0:07:30]} 17. Rad1 {[%emt 0:02:30]} h4 {[%emt 0:00:30]} 18. Qb4 {[%emt 0:09:30]} Qd8 {[%emt 0:02:30]} 19. Nb3 {[%emt 0:02:30]} ({Better is} 19. Kh1 $16) 19... Qc7 {[%emt 0:10:30]} 20. Nd2 {[%emt 0:12:30]} h3 {[%emt 0:03:30]} 21. g3 {[%emt 0:12:28]} b6 {[%emt 0:06:30]} 22. f3 {[%emt 0:03:47]} Bb7 $16 {[%emt 0:10:30]} 23. Qb3 {[%emt 0:06:25]} Rd8 {[%emt 0:08:06]} 24. fxg4 {[%emt 0:01:34]} Qe7 {[%emt 0:03:25]} 25. Bxf7+ {[%emt 0:02:22]} Kg7 {[%emt 0:03:55]} 26. Nf3 {[%emt 0:03:42]} Be3+ {[%emt 0:05:01]} 27. Kh1 {[%emt 0:00:02]} c5 {[%emt 0:01:04]} 28. Bxg6 {[%emt 0:00:09]} Nxe4 {[%emt 0:02:14]} 29. Bxe4 {[%emt 0:00:30]} Bxe4 {[%emt 0:00:00]} 30. Nde1 {[%emt 0:00:25]} Rf8 {[%emt 0:00:48]} 31. Qc4 {[%emt 0:00:34]} Bc6 {[%emt 0:00:59]} 32. Qe2 {[%emt 0:00:53]} Qg5 {[%emt 0:01:02]} 33. Nc2 {[%emt 0:00:37]} Qxg4 {[%emt 0:00:39]} 34. Nxe3 {[%emt 0:01:37]} Rxf3 {[%emt 0:00:24]} 35. Kg1 {[%emt 0:00:45]} Rxg3+ {[%emt 0:00:30]} 36. hxg3 {[%emt 0:00:18]} Qxe2 {[%emt 0:00:00]} 37. Nf5+ {[%emt 0:01:40]} Kh7 {[%emt 0:00:00]} 0-1

[Event "World Junior U20 Girls 2018"]
[Site "Gebze"]
[Date "2018.09.13"]
[Round "9"]
[White "Altantuya, Boldbaatar"]
[Black "Zhu, Jiner"]
[Result "0-1"]
[ECO "E69"]
[WhiteElo "2210"]
[BlackElo "2364"]
[Annotator "NA"]
[PlyCount "86"]
[EventDate "2018.09.05"]
[EventType "swiss"]
[EventCountry "TUR"]
[SourceTitle "playchess.com"]
[Source "ChessBase"]
[SourceQuality "1"]
[TimeControl "40/5400+30:1800+30"]

1. d4 {[%emt 0:00:30]} Nf6 {[%emt 0:00:30]} 2. c4 {[%emt 0:00:30]} g6 {[%emt 0:00:00]} 3. Nc3 {[%emt 0:00:00]} Bg7 {[%emt 0:00:00]} 4. Nf3 {[%emt 0:00:00]} O-O {[%emt 0:00:30]} 5. g3 {[%emt 0:00:30]} d6 {[%emt 0:00:00]} 6. Bg2 {[%emt 0:00:30]} c6 {[%emt 0:00:00]} 7. O-O {[%emt 0:00:30]} Qa5 {[%emt 0:00:00]} 8. h3 {[%emt 0:01:30]} e5 {[%emt 0:00:00]} 9. e4 {[%emt 0:01:30]} Nbd7 {[%emt 0:00:30]} 10. Re1 {[%emt 0:00:00]} exd4 {[%emt 0:02:30]} 11. Nxd4 {[%emt 0:00:00]} Ne5 {[%emt 0:00:30]} 12. Bf1 {[%emt 0:00:30]} Re8 {[%emt 0:06:30] LiveBook: 295 Games} 13. Be3 {[%emt 0:03:30]} Qc7 {[%emt 0:06:30] E69: King's Indian: Fianchetto: 6...Nbd7 7 0-0 e5 8 e4 c6 9 h3} (13... Be6 14. Nxe6 Rxe6 15. Kg2 Ned7 16. Qd2 Rae8 17. Rab1 Qc7 18. f3 a6 19. Rbd1 b5 20. cxb5 axb5 21. Ne2 d5 22. Nd4 dxe4 23. Nxe6 exf3+ 24. Kxf3 Rxe6 {1-0 (47) Bacallao Alonso,Y (2605)-Almeida Quintana,O (2526) Havana 2018}) 14. Rc1 {[%emt 0:03:30]} a5 $146 {[%emt 0:00:30]} ({Predecessor:} 14... b6 15. b3 Bb7 16. Bg2 Rad8 17. Qd2 a6 {½-½ (17) Mehlhorn,U (2098)-Koch,H (2101) GER email 2013}) 15. b3 {[%emt 0:00:30]} Ned7 {[%emt 0:05:30]} 16. Qc2 {[%emt 0:06:30]} Nc5 {[%emt 0:00:30]} 17. Bg2 {[%emt 0:00:30]} Bd7 {[%emt 0:00:30]} 18. a3 {[%emt 0:02:30]} Qc8 {[%emt 0:02:30]} 19. Kh2 {[%emt 0:07:30]} Re5 {[%emt 0:00:30]} 20. g4 {[%emt 0:04:30]} (20. f3 $14) 20... Qf8 {[%emt 0:24:30]} 21. Rcd1 {[%emt 0:04:30]} Ree8 {[%emt 0:01:30]} 22. Bf4 {[%emt 0:09:30]} Rad8 {[%emt 0:00:30]} 23. Ndb5 {[%emt 0:19:30]} Bxg4 {[%emt 0:03:30]} 24. Bxd6 {[%emt 0:08:30]} Bxd1 {[%emt 0:00:30]} 25. Rxd1 {[%emt 0:00:30]} Rxd6 {[%emt 0:00:30]} 26. Nxd6 {[%emt 0:00:00]} Rd8 {[%emt 0:00:30]} 27. e5 {[%emt 0:02:00]} Ng4+ {[%emt 0:00:30]} 28. hxg4 {[%emt 0:06:10]} Bxe5+ {[%emt 0:00:30]} 29. Kg1 {[%emt 0:00:00]} Rxd6 {[%emt 0:01:30]} 30. Re1 {[%emt 0:10:58]} Re6 $19 {[%emt 0:01:30]} 31. Rd1 {[%emt 0:03:39]} Re8 {[%emt 0:02:30]} 32. Ne4 {[%emt 0:01:53]} Ne6 {[%emt 0:03:30]} 33. g5 {[%emt 0:01:50]} Qe7 {[%emt 0:00:00]} 34. Qd2 {[%emt 0:00:42]} Rd8 {[%emt 0:01:00]} 35. Qe1 {[%emt 0:00:35]} Rxd1 {[%emt 0:00:30]} 36. Qxd1 {[%emt 0:00:30]} Nxg5 {[%emt 0:00:00]} 37. Nxg5 {[%emt 0:01:30]} Qxg5 {[%emt 0:00:00]} 38. Kf1 {[%emt 0:00:03]} h5 {[%emt 0:03:30]} 39. Qd7 {[%emt 0:00:52]} Qc1+ {[%emt 0:00:30]} 40. Ke2 {[%emt 0:00:30]} Qb2+ {[%emt 0:00:00]} 41. Ke3 {[%emt 0:08:48]} Qxb3+ {[%emt 0:01:00]} 42. Ke4 {[%emt 0:00:30]} Bf6 {[%emt 0:00:00]} 43. Bf1 {[%emt 0:01:30]} Qxa3 {[%emt 0:01:00]} 0-1